bitfinex/quotes_SOLUSD_20241029
["timestamp","ask_amount","ask_price","bid_price","bid_amount"]
[1730228483393,0.1,181.64,181.6,2.05209119]
[1730228483594,41.70843546,181.71,181.6,0.95230145]
[1730228483819,26.22270256,181.61,181.6,0.95230145]
[1730228484309,26.22270256,181.61,181.6,1.07779145]
[1730228487420,26.22270256,181.65,181.61,23.902374]
[1730228487618,26.22270256,181.62,181.61,24.854374]
[1730228487926,26.22270256,181.64,181.61,25.054374]
[1730228488419,26.22270256,181.65,181.63,23.902374]
[1730228488722,41.70843546,181.71,181.63,23.902374]
[1730228488723,26.22270256,181.64,181.63,23.902374]
[1730228489109,26.22270256,181.65,181.63,23.902374]
[1730228489605,26.22270256,181.64,181.61,0.952]
[1730228489910,41.70843546,181.71,181.62,23.902374]
[1730228491309,26.22270256,181.63,181.62,23.902374]
[1730228491502,26.22270256,181.63,181.61,0.952]
[1730228491831,52.44540512,181.62,181.61,0.952]
[1730228492504,21.20710024,181.71,181.61,0.952]
[1730228492694,26.22270256,181.63,181.62,1.09969274]
[1730228492897,26.22270256,181.63,181.61,20.952]
[1730228493321,26.22270256,181.65,181.61,20.0]
[1730228493521,26.22270256,181.64,181.62,0.12549]
[1730228493815,41.70843546,181.71,181.64,23.902374]
[1730228494208,41.70843546,181.71,181.62,0.12549]
[1730228495219,26.22270256,181.63,181.62,0.12549]
[1730228497234,26.22270256,181.63,181.62,23.902374]
[1730228498341,26.22270256,181.63,181.62,0.12549]
[1730228498933,26.22270256,181.63,181.58,0.0778533]
[1730228498934,52.44540512,181.63,181.58,0.0778533]
[1730228499138,26.22270256,181.59,181.58,20.0778533]
[1730228499313,26.22270256,181.59,181.58,23.9802273]
[1730228499745,26.22270256,181.59,181.58,0.0778533]
[1730228500836,26.22270256,181.59,181.58,25.5978533]
[1730228501042,26.22270256,181.59,181.58,49.5002273]
[1730228503815,26.05768561,181.59,181.58,49.5002273]
[1730228504752,26.22270256,181.6,181.59,49.422374]
[1730228504926,26.22270256,181.61,181.6,43.902374]
[1730228505120,41.70843546,181.71,181.62,20.0]
[1730228505340,26.22270256,181.64,181.63,43.902374]
[1730228506249,26.22270256,181.67,181.66,43.902374]
[1730228506553,6.6488,181.75,181.67,23.902374]
[1730228506855,26.22270256,181.68,181.67,23.902374]
[1730228507557,26.22270256,181.68,181.67,0.12549]
[1730228509370,26.22270256,181.68,181.63,2.06425259]
[1730228509649,26.22270256,181.71,181.63,2.06425259]
[1730228509650,26.22270256,181.65,181.64,32.60381112]
[1730228510236,26.22270256,181.65,181.64,27.08381112]
[1730228510442,26.22270256,181.65,181.64,50.98618512]
[1730228511829,52.44540512,181.65,181.58,0.0778533]
[1730228512027,26.22270256,181.59,181.58,0.0778533]
[1730228514428,26.22270256,181.59,181.49,0.1]
[1730228514429,52.44540512,181.59,181.46,0.1]
[1730228514637,26.22270256,181.53,181.47,0.1]
[1730228514830,26.22270256,181.48,181.47,0.1]
[1730228515737,26.22270256,181.48,181.47,23.902374]
[1730228516060,26.22270256,181.48,181.47,24.002374]
[1730228516271,26.07712011,181.51,181.47,71.34163826]
[1730228516557,26.22270256,181.53,181.48,6.57220254]
[1730228517253,26.22270256,181.49,181.48,6.57220254]
[1730228517765,26.22270256,181.49,181.48,50.47457654]
[1730228517938,26.22270256,181.49,181.48,43.902374]
[1730228522240,26.22270256,181.49,181.48,0.12549]
[1730228522441,26.22270256,181.49,181.46,23.902374]
[1730228522766,26.22270256,181.47,181.45,0.12549]
[1730228522941,26.22270256,181.46,181.45,0.12549]
[1730228523867,26.22270256,181.46,181.45,43.902374]
[1730228524667,26.22270256,181.46,181.43,1.9919379]
[1730228524869,26.22270256,181.44,181.42,0.95315701]
[1730228525038,26.22270256,181.43,181.42,0.95315701]
[1730228525980,26.22270256,181.43,181.42,44.85553101]
[1730228527175,26.22270256,181.43,181.42,0.95315701]
[1730228528468,26.22270256,181.43,181.42,1.07864701]
[1730228529264,26.22270256,181.43,181.42,44.85553101]
[1730228530141,41.74240256,181.53,181.42,44.85553101]
[1730228530142,41.74240256,181.53,181.43,43.902374]
[1730228531267,52.44540512,181.44,181.42,0.95315701]
[1730228531463,26.22270256,181.43,181.36,5.36802837]
[1730228531772,26.22270256,181.37,181.35,6.57220254]
[1730228532085,26.22270256,181.36,181.35,7.52533787]
[1730228532478,16.4064575,181.36,181.35,7.52533787]
[1730228533166,1.47719123,181.52,181.36,5.52]
[1730228533362,16.4064575,181.38,181.37,12.09220254]
[1730228533882,16.4064575,181.44,181.37,12.09220254]
[1730228533883,16.4064575,181.39,181.38,20.0]
[1730228534085,16.4064575,181.4,181.39,43.902374]
[1730228534267,16.4064575,181.4,181.39,49.422374]
[1730228534892,16.4064575,181.4,181.39,25.52]
[1730228535095,16.4064575,181.4,181.36,20.0]
[1730228535296,16.4064575,181.37,181.36,20.0]
[1730228536269,16.4064575,181.37,181.36,43.902374]
[1730228536669,16.4064575,181.44,181.37,43.902374]
[1730228536896,16.4064575,181.44,181.39,0.12549]
[1730228537389,16.4064575,181.44,181.39,23.902374]
[1730228537592,16.4064575,181.44,181.38,20.0]
[1730228538276,16.4064575,181.39,181.38,20.12549]
[1730228538981,16.4064575,181.39,181.38,43.902374]
[1730228542000,16.4064575,181.39,181.38,0.12549]
[1730228543384,16.4064575,181.39,181.38,20.12549]
[1730228543588,16.4064575,181.41,181.39,0.12549]
[1730228543898,16.4064575,181.4,181.39,0.12549]
[1730228544275,16.4064575,181.41,181.39,0.12549]
[1730228544484,16.4064575,181.41,181.39,23.902374]
[1730228545778,16.4064575,181.4,181.39,23.902374]
[1730228545978,16.4064575,181.4,181.39,43.902374]
[1730228547489,16.4064575,181.4,181.39,20.0]
[1730228548081,16.4064575,181.4,181.35,0.95313533]
[1730228548278,16.4064575,181.36,181.35,20.95313533]
[1730228548878,16.4064575,181.36,181.35,0.95313533]
[1730228549196,32.812915,181.36,181.35,0.95313533]
[1730228549894,32.812915,181.36,181.28,6.57220254]
[1730228550091,16.4064575,181.31,181.28,6.57220254]
[1730228550285,16.4064575,181.31,181.29,23.902374]
[1730228550488,16.4064575,181.35,181.3,6.57220254]
[1730228550705,16.4064575,181.31,181.3,6.57220254]
[1730228551899,16.4064575,181.31,181.3,6.69769254]
[1730228552289,16.4064575,181.31,181.3,26.69769254]
[1730228552899,16.4064575,181.31,181.3,26.57220254]
[1730228553101,16.4064575,181.31,181.29,20.0]
[1730228553293,0.1,181.39,181.29,20.0]
[1730228553294,0.1,181.4,181.29,20.0]
[1730228553606,16.4064575,181.3,181.29,20.0]
[1730228553794,16.4064575,181.3,181.27,0.95235268]
[1730228553795,16.4064575,181.3,181.27,20.95235268]
[1730228553994,16.4064575,181.28,181.27,20.95235268]
[1730228554690,16.4064575,181.28,181.27,21.07784268]
[1730228555106,16.4064575,181.28,181.27,27.65004522]
[1730228556481,32.812915,181.28,181.22,0.5899329]
[1730228556791,16.4064575,181.23,181.22,0.5899329]
[1730228557108,16.4064575,181.24,181.22,0.5899329]
[1730228557287,16.4064575,181.26,181.22,0.5899329]
[1730228557481,16.4064575,181.27,181.22,0.5899329]
[1730228558510,16.4064575,181.26,181.23,23.776884]
[1730228559423,16.4064575,181.24,181.22,0.5899329]
[1730228559591,16.4064575,181.23,181.22,0.5899329]
[1730228560583,16.4064575,181.24,181.22,0.5899329]
[1730228561018,16.4064575,181.23,181.22,0.5899329]
[1730228561316,16.4064575,181.24,181.22,0.5899329]
[1730228562496,16.4064575,181.23,181.22,0.5899329]
[1730228563305,16.4064575,181.25,181.22,0.5899329]
[1730228563609,16.4064575,181.24,181.22,0.5899329]
[1730228564394,16.4064575,181.23,181.22,0.5899329]
[1730228569025,20.0,181.3,181.22,0.5899329]
[1730228569221,0.1,181.33,181.22,0.5899329]
[1730228569222,16.4064575,181.29,181.22,0.5899329]
[1730228569702,16.4064575,181.28,181.22,0.5899329]
[1730228570300,16.4064575,181.26,181.22,0.5899329]
[1730228570606,16.4064575,181.25,181.22,0.5899329]
[1730228571215,16.4064575,181.26,181.22,0.5899329]
[1730228571521,16.4064575,181.27,181.22,0.5899329]
[1730228572527,16.4064575,181.3,181.22,0.5899329]
[1730228572700,16.4064575,181.29,181.22,0.5899329]
[1730228572901,16.4064575,181.3,181.22,0.5899329]
[1730228573097,16.4064575,181.28,181.22,0.5899329]
[1730228573312,6.172,181.32,181.22,0.5899329]
[1730228573313,16.4064575,181.25,181.22,0.5899329]
[1730228573628,16.4064575,181.27,181.22,0.5899329]
[1730228574125,16.4064575,181.26,181.22,0.5899329]
[1730228574325,16.42941667,181.26,181.22,0.5899329]
[1730228575115,16.42941667,181.25,181.22,0.5899329]
[1730228575632,0.1,181.3,181.22,0.5899329]
[1730228575633,16.42941667,181.26,181.22,0.5899329]
[1730228576611,16.42941667,181.23,181.22,0.5899329]
[1730228576810,16.42941667,181.25,181.22,0.5899329]
[1730228577009,16.42941667,181.26,181.22,0.5899329]
[1730228577404,16.42941667,181.27,181.22,0.5899329]
[1730228577808,16.42941667,181.26,181.22,0.5899329]
[1730228580630,16.42941667,181.24,181.22,0.5899329]
[1730228580939,16.42941667,181.23,181.22,0.5899329]
[1730228581735,16.42941667,181.24,181.22,0.5899329]
[1730228582615,16.42941667,181.23,181.22,0.5899329]
[1730228586830,16.52941667,181.23,181.22,0.5899329]
[1730228587021,36.52941667,181.23,181.22,0.5899329]
[1730228587355,36.52941667,181.23,181.17,16.42941667]
[1730228587356,22.2163,181.22,181.17,16.42941667]
[1730228587513,22.2163,181.22,181.18,16.42941667]
[1730228587514,15.6591,181.22,181.18,16.42941667]
[1730228587718,15.6591,181.22,181.09,5.52]
[1730228587719,15.6591,181.22,181.17,16.42941667]
[1730228587928,16.42941667,181.2,181.15,16.42941667]
[1730228588221,16.42941667,181.18,181.13,16.42941667]
[1730228588441,16.42941667,181.19,181.13,16.42941667]
[1730228589455,16.42941667,181.2,181.15,16.42941667]
[1730228590227,16.42941667,181.2,181.14,16.42941667]
[1730228590426,16.42941667,181.18,181.12,16.42941667]
[1730228590626,16.42941667,181.21,181.16,16.42941667]
[1730228590953,16.42941667,181.21,181.15,16.42941667]
[1730228591331,16.42941667,181.2,181.15,16.42941667]
[1730228592626,16.42941667,181.21,181.15,16.42941667]
[1730228592827,15.6591,181.22,181.17,16.42941667]
[1730228592828,32.08851667,181.22,181.17,16.42941667]
[1730228593041,15.6591,181.22,181.18,16.42941667]
[1730228593245,15.6591,181.22,181.19,16.42941667]
[1730228593426,15.6591,181.22,181.18,16.42941667]
[1730228595053,28.8919395,181.27,181.21,16.42941667]
[1730228595229,16.62,181.27,181.25,16.42941667]
[1730228595435,16.62,181.27,181.17,22.56971667]
[1730228595436,16.62,181.27,181.24,16.42941667]
[1730228595942,16.62,181.27,181.23,16.42941667]
[1730228596348,16.62,181.27,181.22,16.42941667]
[1730228596844,16.62,181.27,181.23,16.42941667]
[1730228597438,16.62,181.27,181.24,16.42941667]
[1730228597630,16.62,181.27,181.23,16.42941667]
[1730228597838,16.62,181.27,181.22,16.42941667]
[1730228598438,33.04941667,181.27,181.22,16.42941667]
[1730228598646,33.04941667,181.27,181.12,49.76727802]
[1730228598647,16.42941667,181.25,181.2,16.42941667]
[1730228598847,16.42941667,181.26,181.21,16.42941667]
[1730228600146,16.62,181.27,181.22,16.42941667]
[1730228600746,33.04941667,181.27,181.22,16.42941667]
[1730228601051,16.42941667,181.26,181.21,16.42941667]
[1730228601230,16.42941667,181.26,181.17,16.42941667]
[1730228601231,16.42941667,181.23,181.17,16.42941667]
[1730228601428,16.42941667,181.22,181.17,16.42941667]
[1730228601966,16.42941667,181.21,181.15,16.42941667]
[1730228602137,16.42941667,181.2,181.15,16.42941667]
[1730228602339,17.90883861,181.26,181.13,16.42941667]
[1730228602340,16.42941667,181.19,181.13,16.42941667]
[1730228602539,16.42941667,181.18,181.13,16.42941667]
[1730228603556,16.42941667,181.2,181.14,16.42941667]
[1730228604628,16.42941667,181.19,181.14,16.42941667]
[1730228605354,16.42941667,181.22,181.16,16.42941667]
[1730228605649,16.42941667,181.26,181.2,16.42941667]
[1730228607052,16.42941667,181.22,181.17,16.42941667]
[1730228607354,16.42941667,181.23,181.18,16.42941667]
[1730228607526,16.42941667,181.22,181.16,16.42941667]
[1730228607732,16.42941667,181.24,181.18,16.42941667]
[1730228607932,16.42941667,181.23,181.18,16.42941667]
[1730228608155,16.42941667,181.21,181.16,16.42941667]
[1730228608353,16.42941667,181.2,181.15,16.42941667]
[1730228609142,16.42941667,181.19,181.14,16.42941667]
[1730228610432,16.42941667,181.18,181.09,23.902374]
[1730228610643,16.42941667,181.18,181.12,16.42941667]
[1730228611048,16.42941667,181.18,181.13,16.42941667]
[1730228611762,1.57966936,181.23,181.14,16.42941667]
[1730228611763,16.42941667,181.19,181.14,16.42941667]
[1730228612051,16.42941667,181.22,181.16,16.42941667]
[1730228612245,1.37963663,181.25,181.16,16.42941667]
[1730228612246,16.42941667,181.21,181.16,16.42941667]
[1730228612450,16.42941667,181.21,181.15,16.42941667]
[1730228613231,16.42941667,181.2,181.15,16.42941667]
[1730228613429,16.42941667,181.2,181.14,16.42941667]
[1730228613650,16.42941667,181.18,181.13,16.42941667]
[1730228613953,16.42941667,181.18,181.12,36.42941667]
[1730228614160,16.42941667,181.17,181.12,16.42941667]
[1730228614489,16.42941667,181.18,181.12,16.42941667]
[1730228614631,16.42941667,181.18,181.13,16.42941667]
[1730228614830,16.42941667,181.19,181.13,16.42941667]
[1730228615365,16.42941667,181.18,181.13,16.42941667]
[1730228615849,16.42941667,181.17,181.12,16.42941667]
[1730228616159,16.42941667,181.18,181.13,16.42941667]
[1730228616653,16.42941667,181.19,181.13,16.42941667]
[1730228617345,16.42941667,181.19,181.12,16.42941667]
[1730228617549,16.42941667,181.18,181.12,16.42941667]
[1730228618454,16.42941667,181.19,181.13,16.42941667]
[1730228619426,16.42941667,181.19,181.14,16.42941667]
[1730228619655,16.42941667,181.2,181.14,16.42941667]
[1730228620052,17.80927103,181.21,181.15,16.42941667]
[1730228620245,16.42941667,181.22,181.16,16.42941667]
[1730228620552,5.69529183,181.25,181.21,16.42941667]
[1730228620774,16.42941667,181.26,181.2,16.42941667]
[1730228621429,16.42941667,181.25,181.19,16.42941667]
[1730228622141,16.42941667,181.26,181.21,16.42941667]
[1730228622343,16.42941667,181.26,181.2,16.42941667]
[1730228622547,16.42941667,181.25,181.2,16.42941667]
[1730228622752,16.42941667,181.24,181.18,16.42941667]
[1730228628799,10.51786819,181.24,181.18,10.51786819]
[1730228629151,10.51786819,181.23,181.18,10.51786819]
[1730228629473,10.51786819,181.21,181.17,2.04064019]
[1730228629767,10.51786819,181.21,181.15,10.51786819]
[1730228630080,10.51786819,181.21,181.16,10.51786819]
[1730228630584,16.43784928,181.22,181.16,16.43784928]
[1730228630746,16.43784928,181.21,181.15,16.43784928]
[1730228630946,16.43784928,181.22,181.17,16.43784928]
[1730228632344,16.43784928,181.22,181.16,16.43784928]
[1730228633149,16.43784928,181.21,181.15,16.43784928]
[1730228633692,16.43784928,181.19,181.13,16.43784928]
[1730228633866,16.43784928,181.18,181.13,16.43784928]
[1730228634176,16.43784928,181.19,181.13,16.43784928]
[1730228635352,16.43784928,181.16,181.11,2.04450619]
[1730228635656,16.43784928,181.17,181.12,16.43784928]
[1730228636266,16.43784928,181.18,181.12,16.43784928]
[1730228636770,16.43784928,181.17,181.12,16.43784928]
[1730228636953,16.43784928,181.16,181.11,16.43784928]
[1730228638098,15.4776,181.17,181.13,16.43784928]
[1730228639351,31.91544928,181.17,181.12,16.43784928]
[1730228639552,16.43784928,181.16,181.11,16.43784928]
[1730228639773,31.91544928,181.17,181.12,16.43784928]
[1730228640474,16.43784928,181.16,181.11,16.43784928]
[1730228640661,16.43784928,181.13,181.08,16.43784928]
[1730228640971,16.43784928,181.13,181.04,0.5899329]
[1730228640972,16.43784928,181.13,181.07,16.43784928]
[1730228641383,16.43784928,181.12,181.07,16.43784928]
[1730228641557,16.43784928,181.11,181.06,21.22809987]
[1730228641760,16.43784928,181.12,181.07,16.43784928]
[1730228642173,16.43784928,181.11,181.06,16.43784928]
[1730228642875,17.81830012,181.1,181.04,17.02778218]
[1730228643051,16.43784928,181.1,181.04,17.02778218]
[1730228643459,16.43784928,181.11,181.05,16.43784928]
[1730228643658,16.43784928,181.1,181.05,16.43784928]
[1730228643879,16.43784928,181.11,181.05,16.43784928]
[1730228644055,0.1,181.13,181.08,16.43784928]
[1730228644371,16.53784928,181.13,181.07,16.43784928]
[1730228644679,17.81834873,181.12,181.07,16.43784928]
[1730228645275,1.38049945,181.12,181.08,16.43784928]
[1730228645491,0.1,181.13,181.08,16.43784928]
[1730228645492,16.43784928,181.13,181.08,16.43784928]
[1730228646277,17.81827138,181.13,181.08,16.43784928]
[1730228646784,16.43784928,181.13,181.08,16.43784928]
[1730228646962,17.81825492,181.12,181.06,16.43784928]
[1730228647777,16.43784928,181.11,181.06,16.43784928]
[1730228648255,17.81838654,181.1,181.05,16.43784928]
[1730228649066,17.91838654,181.1,181.05,2.0796892]
[1730228649265,1.38053726,181.1,181.06,16.43784928]
[1730228649672,1.38070774,181.11,181.06,16.43784928]
[1730228649873,1.48070774,181.11,181.07,16.43784928]
[1730228650059,1.38070774,181.11,181.07,16.43784928]
[1730228650256,1.38070774,181.11,181.06,16.43784928]
[1730228650585,16.53784928,181.14,181.08,16.43784928]
[1730228651385,16.53784928,181.14,181.04,2.67613895]
[1730228651386,16.53784928,181.13,181.07,16.43784928]
[1730228651677,17.8183862,181.12,181.06,16.43784928]
[1730228651878,17.8183862,181.12,181.07,16.43784928]
[1730228652056,1.38053692,181.12,181.07,16.43784928]
[1730228652676,1.38053692,181.12,181.09,10.53003689]
[1730228652877,5.70181387,181.15,181.11,10.53003689]
[1730228652878,7.08233753,181.15,181.11,10.53003689]
[1730228653073,7.08233753,181.15,181.05,29.22233302]
[1730228653074,1.38052366,181.15,181.13,10.53003689]
[1730228653258,1.3802953,181.16,181.13,10.53003689]
[1730228653454,10.53003689,181.15,181.07,23.776884]
[1730228653660,10.53003689,181.15,181.1,10.53003689]
[1730228654081,1.3802953,181.16,181.11,10.53003689]
[1730228654554,11.91033219,181.16,181.1,10.53003689]
[1730228654960,10.53003689,181.15,181.07,23.776884]
[1730228655155,1.3802953,181.16,181.07,23.776884]
[1730228655156,10.53003689,181.12,181.07,23.776884]
[1730228655371,1.380567,181.11,181.06,10.53003689]
[1730228655889,10.53003689,181.09,181.04,2.67613895]
[1730228656064,10.53003689,181.11,181.05,10.53003689]
[1730228656268,11.91070258,181.1,181.05,10.53003689]
[1730228656573,11.91070258,181.1,181.04,13.20617584]
[1730228657270,10.53003689,181.07,181.04,2.67613895]
[1730228657473,10.53003689,181.08,181.04,2.67613895]
[1730228657684,1.38087489,181.07,181.04,2.67613895]
[1730228658562,11.91091178,181.07,181.04,2.67613895]
[1730228658765,1.38087489,181.07,181.04,2.67613895]
[1730228659267,11.91091178,181.07,181.04,2.67613895]
[1730228659469,1.38087489,181.07,181.04,2.67613895]
[1730228659960,1.38087859,181.08,181.04,2.67613895]
[1730228660157,11.91091548,181.08,181.04,2.67613895]
[1730228660362,1.38087859,181.08,181.04,2.67613895]
[1730228660580,10.53003689,181.09,181.04,2.67613895]
[1730228660786,1.38082397,181.08,181.04,2.67613895]
[1730228661387,10.53003689,181.06,181.04,0.5899329]
[1730228661566,11.91104243,181.05,181.04,0.5899329]
[1730228661766,12.01104243,181.05,181.04,0.5899329]
[1730228662185,12.11104243,181.05,181.04,0.5899329]
[1730228663296,12.23653243,181.05,181.04,0.5899329]
[1730228663465,0.1,181.02,180.89,21.4606]
[1730228663674,10.53003689,180.99,180.93,10.53003689]
[1730228663894,10.53003689,181.0,180.94,10.53003689]
[1730228664185,5.82150043,181.05,180.9,42.12014756]
[1730228664186,1.38146266,181.04,180.98,10.53003689]
[1730228664397,1.38146266,181.04,180.9,42.12014756]
[1730228664398,10.53003689,181.02,180.97,23.776884]
[1730228664571,16.47083021,181.0,180.97,23.776884]
[1730228664770,16.47083021,180.98,180.93,23.776884]
[1730228665077,16.47083021,180.99,180.93,40.24771421]
[1730228665275,16.47083021,180.98,180.93,40.24771421]
[1730228665482,16.47083021,180.99,180.93,40.24771421]
[1730228665990,17.852303,180.98,180.93,23.776884]
[1730228666289,16.47083021,180.99,180.94,16.47083021]
[1730228666479,16.47083021,180.99,180.93,40.24771421]
[1730228666794,17.85235032,180.98,180.93,23.776884]
[1730228667488,16.47083021,180.97,180.92,23.776884]
[1730228668065,16.47083021,180.96,180.92,23.776884]
[1730228668267,16.47083021,180.96,180.91,23.776884]
[1730228668873,16.47083021,180.97,180.91,16.47083021]
[1730228669407,1.38164044,181.01,180.92,16.47083021]
[1730228669575,16.47083021,180.97,180.93,23.776884]
[1730228669980,16.47083021,180.97,180.92,23.776884]
[1730228670186,16.47083021,180.96,180.91,23.776884]
[1730228670493,1.58153412,181.02,180.92,23.776884]
[1730228670494,16.47083021,180.97,180.92,23.776884]
[1730228670702,16.47083021,180.95,180.92,23.776884]
[1730228670997,16.47083021,180.94,180.92,23.776884]
[1730228671879,1.38156293,180.98,180.89,24.83674648]
[1730228671880,16.47083021,180.96,180.91,23.776884]
[1730228672082,16.47083021,180.95,180.91,23.776884]
[1730228672279,16.47083021,180.95,180.9,23.776884]
[1730228673704,16.47083021,180.96,180.9,40.24771421]
[1730228674814,16.47083021,180.97,180.92,16.47083021]
[1730228674988,16.47083021,180.99,180.94,16.47083021]
[1730228675174,16.47083021,180.99,180.95,23.776884]
[1730228675376,16.47083021,180.96,180.95,23.776884]
[1730228675593,16.47083021,180.96,180.92,23.776884]
[1730228675880,1.48131798,181.02,180.92,23.776884]
[1730228676076,16.47083021,180.97,180.92,23.776884]
[1730228676496,16.47083021,180.98,180.93,16.47083021]
[1730228677020,16.47083021,180.99,180.94,16.47083021]
[1730228677502,7.08694848,181.05,180.95,16.47083021]
[1730228677708,16.47083021,181.01,180.97,23.776884]
[1730228680205,16.47083021,181.0,180.97,23.776884]
[1730228680499,16.47083021,181.0,180.96,23.776884]
[1730228681985,16.47083021,181.02,180.96,40.24771421]
[1730228682189,16.47083021,181.02,180.97,16.47083021]
[1730228682420,16.47083021,181.03,180.99,23.776884]
[1730228683205,16.47083021,181.02,180.98,23.776884]
[1730228683598,16.47083021,181.02,180.97,23.776884]
[1730228684395,16.47083021,181.01,180.96,23.776884]
[1730228685112,16.47083021,180.98,180.96,23.776884]
[1730228685298,16.47083021,180.99,180.96,23.776884]
[1730228685492,1.38120287,181.06,180.99,23.776884]
[1730228685686,16.47083021,181.03,180.99,23.776884]
[1730228685882,16.47083021,181.02,180.98,23.776884]
[1730228686825,16.47083021,181.02,180.97,23.776884]
[1730228687394,16.47083021,181.02,180.97,40.24771421]
[1730228687813,16.47083021,181.03,180.97,40.24771421]
[1730228687993,16.47083021,181.02,180.97,40.24771421]
[1730228689792,16.47083021,180.99,180.94,16.47083021]
[1730228690712,16.47083021,180.99,180.94,10.5449894]
[1730228690713,10.5449894,180.99,180.94,10.5449894]
[1730228690910,10.5449894,180.99,180.94,23.776884]
[1730228691416,10.5449894,180.99,180.94,29.300884]
[1730228692724,1.38128681,181.04,180.94,29.300884]
[1730228692925,10.5449894,180.99,180.94,29.300884]
[1730228693921,10.5449894,180.98,180.94,29.300884]
[1730228694728,1.38128681,181.04,180.94,29.300884]
[1730228695022,10.5449894,180.98,180.94,29.300884]
[1730228695222,10.5449894,180.95,180.92,2.081481]
[1730228695424,16.6273,180.98,180.93,10.5449894]
[1730228695598,10.5449894,181.01,180.96,10.5449894]
[1730228696024,16.6273,181.02,180.96,10.5449894]
[1730228696224,10.5449894,181.01,180.96,10.5449894]
[1730228696547,16.6273,181.02,180.98,10.5449894]
[1730228696824,10.5449894,181.03,180.99,23.776884]
[1730228697201,10.5449894,181.04,180.99,34.3218734]
[1730228697496,10.5449894,181.02,180.99,23.776884]
[1730228697700,16.73087392,181.06,180.98,34.3218734]
[1730228697922,10.5449894,181.03,180.98,34.3218734]
[1730228698233,16.73087392,181.06,181.0,23.776884]
[1730228698522,16.46874326,181.03,181.0,23.776884]
[1730228698733,16.46874326,181.03,180.99,23.776884]
[1730228699405,5.71011203,181.09,181.02,16.46874326]
[1730228699629,16.46874326,181.07,181.03,23.776884]
[1730228700317,16.46874326,181.06,181.01,23.776884]
[1730228700637,16.46874326,181.06,181.01,40.24562726]
[1730228701634,16.46874326,181.05,181.01,23.776884]
[1730228701810,16.46874326,181.06,181.01,40.24562726]
[1730228702319,16.46874326,181.05,181.01,23.776884]
[1730228702518,16.46874326,181.06,181.01,40.24562726]
[1730228703024,16.46874326,181.07,181.01,23.776884]
[1730228703230,16.46874326,181.07,181.02,16.46874326]
[1730228703437,16.46874326,181.07,181.03,23.776884]
[1730228703816,16.46874326,181.06,181.02,23.776884]
[1730228704018,16.46874326,181.05,181.02,23.776884]
[1730228704411,16.46874326,181.05,181.01,23.776884]
[1730228705030,16.46874326,181.07,181.04,23.776884]
[1730228705517,16.46874326,181.08,181.03,40.24562726]
[1730228705929,16.46874326,181.1,181.05,16.46874326]
[1730228706143,16.46874326,181.1,181.07,23.776884]
[1730228706434,16.46874326,181.1,181.06,23.776884]
[1730228707025,16.46874326,181.07,181.04,23.776884]
[1730228707226,16.46874326,181.07,181.03,23.776884]
[1730228707628,16.46874326,181.08,181.03,40.24562726]
[1730228709646,16.46874326,181.08,181.05,23.776884]
[1730228710444,16.46874326,181.07,181.05,23.776884]
[1730228711727,16.46874326,181.08,181.05,23.776884]
[1730228711927,16.46874326,181.06,181.04,23.776884]
[1730228712130,16.46874326,181.07,181.04,23.776884]
[1730228713943,1.38047065,181.1,181.0,2.05475346]
[1730228713944,16.46874326,181.05,181.0,2.05475346]
[1730228714125,16.46874326,181.05,181.0,16.46874326]
[1730228715430,16.46874326,181.06,181.01,16.46874326]
[1730228715626,16.46874326,181.06,181.02,23.776884]
[1730228717318,16.46874326,181.03,180.99,2.03927483]
[1730228717519,16.46874326,181.01,180.96,5.524]
[1730228717920,16.46874326,181.0,180.95,5.524]
[1730228718116,6.1611,181.06,180.95,5.524]
[1730228718117,16.46874326,180.98,180.95,5.524]
[1730228718378,16.46874326,180.98,180.93,27.86488117]
[1730228718534,10.54646399,180.98,180.93,16.4186019]
[1730228718745,10.54646399,180.98,180.93,7.89575198]
[1730228718921,1.38132238,181.01,180.93,7.89575198]
[1730228719131,10.54646399,180.97,180.93,7.89575198]
[1730228719340,10.54646399,180.96,180.93,7.89575198]
[1730228719527,10.54646399,180.95,180.93,7.89575198]
[1730228719949,10.54646399,180.95,180.93,2.02361407]
[1730228720244,10.54646399,180.94,180.89,5.87213791]
[1730228720468,1.38155094,180.98,180.89,5.87213791]
[1730228720621,1.3815234,181.01,180.91,10.54646399]
[1730228720826,10.54646399,180.97,180.91,10.54646399]
[1730228721139,10.54646399,180.96,180.91,10.54646399]
[1730228721342,10.54646399,180.95,180.9,10.67195399]
[1730228721853,10.54646399,180.95,180.91,23.776884]
[1730228722052,1.3815234,181.01,180.93,10.54646399]
[1730228722248,1.3815234,181.01,180.95,23.776884]
[1730228722432,10.54646399,180.98,180.95,23.776884]
[1730228723754,10.54646399,180.98,180.93,23.776884]
[1730228724738,1.3815234,181.01,180.93,23.776884]
[1730228724936,10.54646399,180.98,180.93,23.776884]